{"text_format":"2","workbook":"xlsx","n_sheets":8,"sheets":["Záradék","Összesítő","Festés","Burkolatok","Asztalos","Gépészet","Elektromos","Kiegészítő munkák"],"not_rendered":{"charts":0,"images":0,"macros":0,"external_links":0,"defined_names":0,"comments":0,"pivot_tables":0},"unopened":[],"bounds":{"document_bytes":16777216,"sheet_cells":100000,"run_cost":"one","rows_first":2000,"rows_last":500,"rows_between":2000,"halvings":0,"cell_chars":16384,"cell_head_chars":4096},"cells_cut":0,"cells_raw":0,"read":"whole","date_system":"1900"}

{"sheet":"Záradék","index":0,"n_rows":23,"n_cols":4,"rows_kept":23,"cut":false,"hidden":false,"merged":[[2,0,5,0],[10,0,10,3],[15,2,15,3],[16,2,16,3],[17,2,17,3],[13,2,13,3],[14,2,14,3]]}
[]
["Név : SZTE  SZAOK Dékáni Hivatal                           ",null,"                                       "]
["Cím : 6722 Tisza Lajos krt. 109.       ",null," Kelt:        "]
[null,null," Szám         :.............           "]
[null,null," KSH besorolás:.....................   "]
[null,null," Teljesítés:20.. év...........hó...nap "]
["A munka leírása: Felújítási munkák        ",null," Készítette   :     "]
["                                                                              "]
[]
[]
["Költségvetés főösszesítő (HUF)"]
["Megnevezés",null,"Anyagköltség","Díjköltség"]
["1. Építmény közvetlen költségei",null,{"$f":"Összesítő!B8","v":0},{"$f":"Összesítő!C8","v":0}]
["1.1 Anyag + Díj",null,{"$f":"(C13+D13)","v":0}]
["5.1 Tartalékkeret 5%",null,{"$f":"(C14*0.05)","v":0}]
["5.2 ÁFA vetítési alap",null,{"$f":"(C14+C15)","v":0}]
["5.3 Áfa",0.27,{"$f":"ROUND(C16*B17,0)","v":0}]
["6.  A munka ára",null,{"$f":"ROUND(C16+C17,0)","v":0}]
[]
[]
[]
[]
[null,"Aláírás:"]

{"sheet":"Összesítő","index":1,"n_rows":8,"n_cols":3,"rows_kept":8,"cut":false,"hidden":false,"merged":[]}
["Munkanem megnevezése","Anyag összege","Díj összege"]
["Festési munkák",{"$f":"Festés!G34","v":0},{"$f":"Festés!H34","v":0}]
["Burkolati munkák",{"$f":"Burkolatok!G20","v":0},{"$f":"Burkolatok!H20","v":0}]
["Asztalos",{"$f":"Asztalos!G7","v":0},{"$f":"Asztalos!H7","v":0}]
["Gépészet",{"$f":"Gépészet!G10","v":0},{"$f":"Gépészet!H10","v":0}]
["Elektromos",{"$f":"Elektromos!G10","v":0},{"$f":"Elektromos!H10","v":0}]
["Kiegészítő munkák",{"$f":"'Kiegészítő munkák'!G24","v":0},{"$f":"'Kiegészítő munkák'!H24","v":0}]
["Összesen:",{"$f":"SUM(B2:B7)","v":0},{"$f":"SUM(C2:C7)","v":0}]

{"sheet":"Festés","index":2,"n_rows":34,"n_cols":8,"rows_kept":34,"cut":false,"hidden":false,"merged":[[0,0,0,7]]}
["Festési munák"]
["Ssz.","Tétel szövege","Menny.","Egység","Anyag egységár","Díj egységre","Anyag összesen","Díj összesen"]
[1,"Ablakpárkányok mellett,  tokok mellett, nyílászárók szétrepedt részein festhető szilikonon tömítés készítése",220,"m      ",0,0,{"$f":"ROUND(C3*E3, 0)","v":0},{"$f":"ROUND(C3*F3, 0)","v":0}]
[]
[2,"Belső festéseknél felület előkészítése, részmunkák; falfesték átkaparása csiszolása, bármilyen padozatú helységben, tagolt felületen",737,"m2     ",0,0,{"$f":"ROUND(C5*E5, 0)","v":0},{"$f":"ROUND(C5*F5, 0)","v":0}]
[]
[3,"Belső festéseknél felület előkészítése, részmunkák; simítótapaszolás falfelületen, egyszeri és minden további, toldott létráról vagy bútorozott helyiségben, tagolatlan felületen Neoplaszt L10 késtapasz        20 %- Diszperzites felület",73.7,"m2     ",0,0,{"$f":"ROUND(C7*E7, 0)","v":0},{"$f":"ROUND(C7*F7, 0)","v":0}]
[]
[4,"Normál nem egyenletes nedvszívóképességű ásványi falfelületek alapozása, felületmegerősítése, vizes-diszperziós akril bázisú alapozóval, tagolt felületen Baumit Mélyalapozó Cikkszám: 953208",737,"m2     ",0,0,{"$f":"ROUND(C9*E9, 0)","v":0},{"$f":"ROUND(C9*F9, 0)","v":0}]
[]
[5,"Diszperziós festés műanyag bázisú vizes-diszperziós  fehér vagy gyárilag színezett festékkel, új vagy régi lekapart, előkészített alapfelületen, vakolaton, két rétegben, tagolt sima felületen Héra diszperziós belső falfesték, színes, EAN:",737,"m2     ",0,0,{"$f":"ROUND(C11*E11, 0)","v":0},{"$f":"ROUND(C11*F11, 0)","v":0}]
[]
[6,"Belső festéseknél felület előkészítése, részmunkák; régi olajfesték átkaparása falfelületről, spatulyával,  toldott létráról vagy bútorozott helyiségben, tagolatlan felületen",25,"m2     ",0,0,{"$f":"ROUND(C13*E13, 0)","v":0},{"$f":"ROUND(C13*F13, 0)","v":0}]
[]
[7,"Belső festéseknél felület előkészítése, részmunkák; simítótapaszolás falfelületen, egyszeri és minden további, toldott létráról vagy bútorozott helyiségben, tagolt felületen Neoplaszt L10 késtapasz Olajlábazatnál  10%",2.5,"m2     ",0,0,{"$f":"ROUND(C15*E15, 0)","v":0},{"$f":"ROUND(C15*F15, 0)","v":0}]
[]
[8,"Olajfestések, ólommentes olaj kötőanyagú, fehér vagy színes falfestékkel, ásványi alapfelületen,  két rétegben, tagolt sima felületen TRINÁT olajfesték meglévő olaj lábazat",25,"m2     ",0,0,{"$f":"ROUND(C17*E17, 0)","v":0},{"$f":"ROUND(C17*F17, 0)","v":0}]
[]
[9,"Acélfelületek mázolásának előkészítő és részmunkái; régi olajfesték eltávolítása csiszolás, korláton",4,"m2",0,0,{"$f":"ROUND(C19*E19, 0)","v":0},{"$f":"ROUND(C19*F19, 0)","v":0}]
[]
[10,"Fafelületek mázolásának előkészítő és részmunkái; régi olajmázolás csiszolása fa nyílászáró szerkezeten",478,"m2",0,0,{"$f":"ROUND(C21*E21, 0)","v":0},{"$f":"ROUND(C21*F21, 0)","v":0}]
[]
[11,"Fafelületek mázolásának előkészítő és részmunkái; simító tapaszolás fafelületen, egyszeri és minden további, tagolatlan felületen Trinát Mestertapasz, EAN: 595061609376",24,"m2",0,0,{"$f":"ROUND(C23*E23, 0)","v":0},{"$f":"ROUND(C23*F23, 0)","v":0}]
[]
[12,"Acélfelületek közbenső festése korláton műgyanta kötőanyagú, oldószeres festékkel Trinát alapozófesték, színes",4,"m2",0,0,{"$f":"ROUND(C25*E25, 0)","v":0},{"$f":"ROUND(C25*F25, 0)","v":0}]
[]
[13,"Acélfelületek átvonó festése korláton műgyanta kötőanyagú, oldószeres festékkel Trinát selyemfényű zománcfesték, színes",4,"m2",0,0,{"$f":"ROUND(C27*E27, 0)","v":0},{"$f":"ROUND(C27*F27, 0)","v":0}]
[]
[14,"Belső fafelületek fedőmázolása, műgyantabázisú (alkid) oldószertartalmú alapozóval, tagolatlan felületen Trinát alapozófesték, ",478,"m2",0,0,{"$f":"ROUND(C29*E29, 0)","v":0},{"$f":"ROUND(C29*F29, 0)","v":0}]
[]
[15,"Belső fafelületek zománclakkozása, műgyantabázisú (alkid) oldószertartalmú zománccal, tagolatlan felületen Trinát magasfényű zománcfesték, ",478,"m2",0,0,{"$f":"ROUND(C31*E31, 0)","v":0},{"$f":"ROUND(C31*F31, 0)","v":0}]
[]
[16,"Belső fafelületek átvonó festése színtelen lazúr festékkel. Tetőszerkezeti elemeken. ",8,"m2",0,0,{"$f":"ROUND(C33*E33, 0)","v":0},{"$f":"ROUND(C33*F33, 0)","v":0}]
[null,"Munkanem összesen (HUF)",{"$nulls":4},{"$f":"SUM(G3:G33)","v":0},{"$f":"SUM(H3:H33)","v":0}]

{"sheet":"Burkolatok","index":3,"n_rows":20,"n_cols":8,"rows_kept":20,"cut":false,"hidden":false,"merged":[[0,0,0,7]]}
["burkolatok felújítása"]
["Ssz.","Tétel szövege","Menny.","Egység","Anyag egységár","Díj egységre","Anyag összesen","Díj összesen"]
[1,"Meglévő aljzat kiegyenlítése, ragasztott parketta, valamint rugalmas burkolat alá (nagy igénybevétel) ragasztóval szennyezett betonaljzat (cementesztrich) felület előkészítése, 3 mm vastagságban, Baumit Nivello Quattro önterülő aljzatkiegyenlítő + Baumit Grund, nedvszívó alapfelület alapozására",16,"m2",0,0,{"$f":"ROUND(E3*C3,0)","v":0},{"$f":"ROUND(F3*C3,0)","v":0}]
[]
[2,"Parkettafektetés, csaphornyos parkettából, kiegyenlített aljzatra ragasztva, nedvességre kevésbé érzékeny fafajtából, halszálka mintába (duplahalszálka mintába) rakva (ragasztó anyag külön tételben kiírva), Csaphornyos parketta, 300/350/400x45/55x22 mm, tölgy, Standard, széklécell",16,"m2",0,0,{"$f":"ROUND(E5*C5,0)","v":0},{"$f":"ROUND(F5*C5,0)","v":0}]
[3,"Fa-, hézagmentes műanyag- és szőnyegburkolatok bontása, csaphornyos vagy mozaikparketta, 22 mm vastag aljzatbetonra ragasztva",12,"m2",0,0,{"$f":"ROUND(E6*C6,0)","v":0},{"$f":"ROUND(F6*C6,0)","v":0}]
[]
[4,"Melegburkolatok aljzatelőkészítése. Bontás után megmaradt ragasztó réteg oldószeres eltávolítása",12,"m2",0,0,{"$f":"ROUND(E8*C8,0)","v":0},{"$f":"ROUND(F8*C8,0)","v":0}]
[]
[5,"Kisegítő- és részmunkák, parketta csiszolása és lakkozása, nagy igénybevételre, vízbázisú lakkal, MUREXIN AV 20 Aqua különleges alapozó MUREXIN PO 70 Aqua Objekt vizeslakk, magasfényű. ",171,"m2",0,0,{"$f":"ROUND(E10*C10,0)","v":0},{"$f":"ROUND(F10*C10,0)","v":0}]
[]
[6,"Lapburkolatok bontása, padlóburkolat, bármely méretű mozaik, kőagyag és csempe",4,"m2",0,0,{"$f":"ROUND(C12*E12, 0)","v":0},{"$f":"ROUND(C12*F12, 0)","v":0}]
[]
[7,"Lapburkolatok bontása, fal-, pillér- és oszlopburkolat, bármely méretű mozaik, kőagyag és csempe",5,"m2",0,0,{"$f":"ROUND(C14*E14, 0)","v":0},{"$f":"ROUND(C14*F14, 0)","v":0}]
[]
[8,"Fal-, pillér és oszlopburkolat hordozószerkezetének felületelőkészítése beltérben, tégla, beton és vakolt alapfelületen, felületelőkészítő alapozó és tapadóhíd felhordása egy rétegben MUREXIN LF 1 mélyalapozó",5,"m2",0,0,{"$f":"ROUND(C16*E16, 0)","v":0},{"$f":"ROUND(C16*F16, 0)","v":0}]
[]
[9,"Fal-, pillér-, oszlopburkolat készítése beltérben, tégla, beton, vakolt alapfelületen, mázas kerámiával, kötésben vagy hálósan, 3-5 mm vtg. ragasztóba rakva, 1-10 mm fugaszélességgel, 10x10 - 20x20 cm közötti lapmérettel MAPEI Keraflex Light S1 C2TE S1cementkötésű ragasztóhabarcs, szürke, Keracolor FF Flex fugázó, szürke",5,"m2",0,0,{"$f":"ROUND(C18*E18, 0)","v":0},{"$f":"ROUND(C18*F18, 0)","v":0}]
[]
[null,"Munkanem összesen (HUF)",{"$nulls":4},{"$f":"ROUND(SUM(G3:G19),0)","v":0},{"$f":"ROUND(SUM(H3:H19),0)","v":0}]

{"sheet":"Asztalos","index":4,"n_rows":7,"n_cols":8,"rows_kept":7,"cut":false,"hidden":false,"merged":[[9,4,9,5],[9,6,9,7],[0,0,0,7],[7,4,7,5],[7,6,7,7],[8,4,8,5],[8,6,8,7]]}
["Asztalos"]
["Ssz.","Tétel szövege","Menny.","Egység","Anyag egységár","Díj egységre","Anyag összesen","Díj összesen"]
[1,"Beépített szekrény bontása és áthelyezése szomszédos irattár helyiségbe ",1,"klt*",0,0,{"$f":"ROUND(C3*E3, 0)","v":0},{"$f":"ROUND(C3*F3, 0)","v":0}]
[]
[2,"Meglévő mindenféle nyílászáró szerkezet kisebb javítása  faanyag- és/vagy vasalatpótlással.",34,"db",0,0,{"$f":"ROUND(C5*E5, 0)","v":0},{"$f":"ROUND(C5*F5, 0)","v":0}]
[]
[null,"Munkanem összesen (HUF)",{"$nulls":4},{"$f":"SUM(G3:G6)","v":0},{"$f":"SUM(H3:H6)","v":0}]

{"sheet":"Gépészet","index":5,"n_rows":10,"n_cols":8,"rows_kept":10,"cut":false,"hidden":false,"merged":[[0,0,0,7]]}
["Gépészet"]
["Ssz.","Tétel szövege","Menny.","Egység","Anyag egységár","Díj egységre","Anyag összesen","Díj összesen"]
[1,"Fali csaptelep , mosogató, faliszifon,sarokszelepek bontása és a vízbekötések megszüntetése",1,"db",0,0,{"$f":"(C3*E3)","v":0},{"$f":"(C3*F3)","v":0}]
[]
[2,"Mosogatóhoz csatlakozási helyek kiépítése nyomó és lefolyó vezeték kiépítés. ",1,"klt*",0,0,{"$f":"(C5*E5)","v":0},{"$f":"(C5*F5)","v":0}]
[]
[3,"Mosogató bekötése ",1,"db",0,0,{"$f":"(C7*E7)","v":0},{"$f":"(C7*F7)","v":0}]
[]
[4,"fali keverő csaptelep felszerelése",1,"db",0,0,{"$f":"(C9*E9)","v":0},{"$f":"(C9*F9)","v":0}]
[null,"Munkanem összesen (HUF)",{"$nulls":4},{"$f":"SUM(G5:G9)","v":0},{"$f":"SUM(H5:H9)","v":0}]

{"sheet":"Elektromos","index":6,"n_rows":10,"n_cols":8,"rows_kept":10,"cut":false,"hidden":false,"merged":[[0,0,0,7]]}
["Elektromos"]
["Ssz.","Tétel szövege","Menny.","Egység","Anyag egységár","Díj egységre","Anyag összesen","Díj összesen"]
[1,"Új betáp vezeték kiépítése konyha szekrényhez, hűtőgép és konyhai gépek részére.",1,"klt*",0,0,{"$f":"(C3*E3)","v":0},{"$f":"(C3*F3)","v":0}]
[]
[2,"Dugaljak felszerelése konyha szekrényhez. Sülyesztett dugalj hűtőszekrényhez. Négyes sűlyesztett dugalj konyha gépekhez.",1,"klt*",0,0,{"$f":"(C5*E5)","v":0},{"$f":"(C5*F5)","v":0}]
[]
[3,"Dugaszoló aljzatok bontása csempe burkolat bontása miatt",2,"db",0,0,{"$f":"(C7*E7)","v":0},0]
[]
[4,"Ellenörző év mérés új elektromos csatlakozásoknál. JKV készítés.",1,"klt*",0,0,{"$f":"(C9*E9)","v":0},{"$f":"(C9*F9)","v":0}]
[null,"Munkanem összesen (HUF)",{"$nulls":4},{"$f":"SUM(G3:G9)","v":0},{"$f":"SUM(H3:H9)","v":0}]

{"sheet":"Kiegészítő munkák","index":7,"n_rows":24,"n_cols":8,"rows_kept":24,"cut":false,"hidden":false,"merged":[[0,0,0,7]]}
["Kiegészítő munkák"]
["Ssz.","Tétel szövege","Menny.","Egység","Anyag egységár","Díj egységre","Anyag összesen","Díj összesen"]
[1,"Építmények átadás előtti utolsó takarítása  Épületrészenként finom takarítás (384 m2 alapterületen), ablakokon, ajtókon üvegek tisztítása (34 db nyílászáró) bútorzaton berendezési tárgyakon portörlés, felmosás, stb.",1,"klt*",0,0,{"$f":"ROUND(C3*E3, 0)","v":0},{"$f":"ROUND(C3*F3, 0)","v":0}]
[]
[2,"Függönyök sötétítő függönyök le és felszerelése. (13 db nyílászáró)",1,"klt*",0,0,{"$f":"ROUND(C5*E5, 0)","v":0},{"$f":"ROUND(C5*F5, 0)","v":0}]
[]
[3,"Fóliatakarások készítése 384 m2 alapterületen",1,"klt*",0,0,{"$f":"ROUND(C7*E7, 0)","v":0},{"$f":"ROUND(C7*F7, 0)","v":0}]
[]
[4,"Bútormozgatások épületen belől,  székek, asztalok, szekrények ",1,"klt*",0,0,{"$f":"ROUND(E9*C9,0)","v":0},{"$f":"ROUND(F9*C9,0)","v":0}]
[]
[5,"Kazettás álmennyezet sérült elemeinek cseréje ",15,"db",0,0,{"$f":"ROUND(E11*C11,0)","v":0},{"$f":"ROUND(F11*C11,0)","v":0}]
[]
[6,"Építési törmelék felrakása  szállítóeszközre, kézi erővel,",1,"m3     ",0,0,{"$f":"ROUND(C13*E13, 0)","v":0},{"$f":"ROUND(C13*F13, 0)","v":0}]
[]
[7,"Építési törmelék mozgatása kézi erővel ",1,"m3     ",0,0,{"$f":"ROUND(C15*E15, 0)","v":0},{"$f":"ROUND(C15*F15, 0)","v":0}]
[]
[8,"Építési törmelék konténeres elszállítása, lerakása, lerakóhelyi díjjal, 2,4 m³-es konténerbe",1,"db     ",0,0,{"$f":"ROUND(C17*E17, 0)","v":0},{"$f":"ROUND(C17*F17, 0)","v":0}]
[]
[9,"Vakolatjavítás oldalfalon, tégla-, beton-, kőfelületen vagy építőlemezen, a meglazult, sérült vakolat előzetes leverésével, hiánypótlás  Hvb8-mc, beltéri, vakoló cementes mészhabarcs mészpéppel",3,"m2     ",0,0,{"$f":"ROUND(C19*E19, 0)","v":0},{"$f":"ROUND(C19*F19, 0)","v":0}]
[]
[10,"Vakolatok pótlása, keskenyvakolatok pótlása oldalfalon, 11-20 cm szélesség között",5,"m      ",0,0,{"$f":"ROUND(C21*E21, 0)","v":0},{"$f":"ROUND(C21*F21, 0)","v":0}]
[]
[11,"Cement esztrich burkolat bontása padlólap burkolat alatti részen. ",5,"m2",0,0,{"$f":"ROUND(C23*E23, 0)","v":0},{"$f":"ROUND(C23*F23, 0)","v":0}]
[null,"Munkanem összesen (HUF)",{"$nulls":4},{"$f":"SUM(G3:G23)","v":0},{"$f":"SUM(H3:H23)","v":0}]